bitfinex/quotes_SOLUSD_20220128
["timestamp","ask_amount","ask_price","bid_price","bid_amount"]
[1643370277940,0.25,88.174,88.1,13.63]
[1643370278138,0.25,88.174,88.11,6.0]
[1643370278340,48.63412065,88.174,88.111,45.18710336]
[1643370279341,48.63412065,88.174,88.112,0.25]
[1643370281842,48.63412065,88.174,88.111,45.18710336]
[1643370283343,48.38412065,88.174,88.112,0.25]
[1643370285347,48.38412065,88.174,88.121,6.0]
[1643370285749,0.25,88.173,88.122,0.25]
[1643370287147,0.25,88.173,88.121,6.0]
[1643370287548,0.25,88.173,88.12,16.35]
[1643370289248,1.7974625,88.173,88.12,16.35]
[1643370289448,1.5474625,88.171,88.12,16.35]
[1643370289649,1.7974625,88.173,88.12,16.35]
[1643370289847,0.25,88.173,88.12,16.35]
[1643370290848,6.0,88.164,88.12,16.35]
[1643370291249,6.0,88.164,88.076,1.57300827]
[1643370291250,0.25,88.163,88.076,1.57300827]
[1643370291450,17.036,88.16,88.072,1.57300827]
[1643370291647,17.036,88.16,88.082,6.0]
[1643370291648,18.5834625,88.16,88.082,6.0]
[1643370291873,0.25,88.159,88.082,6.0]
[1643370292046,6.0,88.15,88.082,6.0]
[1643370292248,6.0,88.15,88.083,46.76097994]
[1643370292447,6.25,88.149,88.083,46.76097994]
[1643370293649,6.0,88.147,88.083,46.76097994]
[1643370293848,0.25,88.146,88.083,46.76097994]
[1643370294449,42.21389706,88.145,88.083,46.76097994]
[1643370294648,6.0,88.135,88.083,46.76097994]
[1643370294849,6.0,88.135,88.084,0.25]
[1643370295048,0.25,88.134,88.084,0.25]
[1643370295248,42.21389706,88.145,88.084,0.25]
[1643370295648,0.25,88.144,88.084,0.25]
[1643370295849,6.0,88.135,88.084,0.25]
[1643370296050,0.25,88.144,88.084,0.25]
[1643370296551,0.25,88.144,88.084,24.1705]
[1643370296753,44.3894397,88.162,88.084,24.1705]
[1643370297353,44.3894397,88.162,88.085,2.14622787]
[1643370297753,44.3894397,88.162,88.086,0.25]
[1643370298052,44.3894397,88.162,88.09,16.35]
[1643370298253,47.9639,88.163,88.091,0.25]
[1643370298752,0.25,88.162,88.091,0.25]
[1643370298956,0.25,88.162,88.1,6.0]
[1643370299151,23.851,88.191,88.11,16.35]
[1643370299152,0.25,88.172,88.11,16.35]
[1643370299375,23.851,88.191,88.11,16.35]
[1643370299376,43.7045807,88.174,88.111,22.58105866]
[1643370299551,43.7045807,88.174,88.111,22.33105866]
[1643370300553,6.0,88.164,88.111,22.33105866]
[1643370300752,6.0,88.164,88.101,23.776]
[1643370300953,6.25,88.163,88.101,23.776]
[1643370301154,0.25,88.163,88.09,16.35]
[1643370301754,0.25,88.163,88.091,35.1763308]
[1643370301955,0.25,88.163,88.091,35.4263308]
[1643370302555,0.25,88.163,88.092,23.7063]
[1643370302757,0.25,88.169,88.092,23.7063]
[1643370302957,0.25,88.169,88.093,0.25]
[1643370303360,0.25,88.17,88.093,0.25]
[1643370303560,0.25,88.17,88.092,46.5226]
[1643370303761,0.25,88.17,88.093,0.25]
[1643370304963,0.25,88.17,88.094,2.14622787]
[1643370305360,0.25,88.17,88.095,0.25]
[1643370305761,0.25,88.177,88.096,2.14622787]
[1643370305963,45.00950625,88.177,88.11,16.35]
[1643370306162,45.00950625,88.177,88.111,33.9157078]
[1643370306363,0.25,88.176,88.111,34.1657078]
[1643370307687,0.25,88.178,88.111,34.1657078]
[1643370307888,0.25,88.18,88.111,34.1657078]
[1643370308688,36.31642889,88.181,88.111,34.1657078]
[1643370309089,37.86389139,88.181,88.111,34.1657078]
[1643370309291,1.5474625,88.178,88.111,34.1657078]
[1643370309491,0.25,88.181,88.112,2.14622787]
[1643370309690,1.5474625,88.194,88.112,2.14622787]
[1643370309890,1.5474625,88.195,88.122,6.0]
[1643370310089,1.5474625,88.198,88.13,16.35]
[1643370310291,48.49183816,88.194,88.131,59.22907938]
[1643370310888,1.5474625,88.202,88.131,61.37530725]
[1643370311091,0.25,88.2,88.141,6.0]
[1643370311289,1.5474625,88.207,88.142,24.7722]
[1643370311490,1.5474625,88.207,88.142,32.91842787]
[1643370311688,1.5474625,88.207,88.143,27.87572308]
[1643370311892,1.5474625,88.207,88.15,6.0]
[1643370312089,1.5474625,88.207,88.144,0.25]
[1643370312090,1.5474625,88.234,88.161,112.8]
[1643370312291,1.5474625,88.245,88.162,46.6026]
[1643370312494,1.5474625,88.246,88.171,6.0]
[1643370312689,1.5474625,88.246,88.18,16.35]
[1643370312890,1.5474625,88.246,88.19,16.35]
[1643370313091,1.5474625,88.247,88.19,16.35]
[1643370313289,0.25,88.246,88.191,0.25]
[1643370313490,0.25,88.246,88.19,16.35]
[1643370313691,0.25,88.247,88.19,16.35]
[1643370314992,0.25,88.247,88.172,6.0]
[1643370314993,6.0,88.238,88.172,6.0]
[1643370315194,6.0,88.238,88.17,16.35]
[1643370315401,17.022,88.23,88.17,16.35]
[1643370315594,17.022,88.23,88.15,16.35]
[1643370315794,6.0,88.22,88.14,16.35]
[1643370316196,6.25,88.219,88.151,30.21823999]
[1643370316593,6.25,88.219,88.161,6.0]
[1643370317395,0.25,88.219,88.161,6.0]
[1643370317597,0.25,88.228,88.161,6.0]
[1643370317794,6.0,88.219,88.161,6.0]
[1643370318196,0.25,88.218,88.161,6.0]
[1643370319398,0.25,88.228,88.161,6.0]
[1643370320499,113.05,88.228,88.161,6.0]
[1643370322501,113.05,88.228,88.15,16.35]
[1643370322702,112.8,88.217,88.14,16.35]
[1643370322900,0.25,88.216,88.14,16.35]
[1643370323101,6.0,88.207,88.14,16.35]
[1643370323300,0.25,88.206,88.14,16.35]
[1643370323500,46.41529538,88.206,88.14,16.35]
[1643370323901,6.0,88.196,88.14,16.35]
[1643370324305,0.25,88.195,88.14,16.35]
[1643370325507,0.25,88.195,88.12,16.35]
[1643370325706,17.03,88.19,88.1,16.35]
[1643370325908,17.03,88.19,88.07,204.4]
[1643370325909,0.25,88.189,88.09,16.35]
[1643370326108,6.0,88.18,88.09,16.35]
[1643370326308,146.4682181,88.179,88.091,38.87588982]
[1643370326509,6.0,88.17,88.091,38.87588982]
[1643370326711,112.8,88.169,88.091,38.87588982]
[1643370326909,113.05,88.169,88.091,38.87588982]
[1643370327111,6.0,88.16,88.091,38.87588982]
[1643370327311,0.25,88.159,88.091,38.87588982]
[1643370328310,0.25,88.159,88.092,0.25]
[1643370328511,0.25,88.169,88.092,0.25]
[1643370328710,6.0,88.17,88.091,38.87588982]
[1643370328911,6.0,88.17,88.092,0.25]
[1643370329612,6.0,88.17,88.091,38.87588982]
[1643370329812,6.0,88.17,88.092,0.25]
[1643370330816,33.4182181,88.179,88.092,0.25]
[1643370331019,0.25,88.178,88.092,24.1991]
[1643370331418,0.25,88.178,88.092,23.9491]
[1643370331816,6.0,88.17,88.092,23.9491]
[1643370332017,112.8,88.169,88.092,23.9491]
[1643370332219,113.05,88.169,88.092,23.9491]
[1643370332418,6.0,88.16,88.092,23.9491]
[1643370332816,0.25,88.159,88.09,16.35]
[1643370333016,0.25,88.159,88.093,35.84381068]
[1643370333242,6.0,88.16,88.093,35.84381068]
[1643370333442,6.0,88.16,88.094,0.25]
[1643370333843,6.0,88.16,88.093,35.84381068]
[1643370334447,0.25,88.159,88.093,35.84381068]
[1643370334647,0.25,88.159,88.094,0.25]
[1643370334850,0.25,88.178,88.094,0.25]
[1643370335449,0.25,88.178,88.094,24.4041]
[1643370335849,6.0,88.17,88.094,24.4041]
[1643370336250,0.25,88.169,88.094,24.4041]
[1643370336450,6.0,88.17,88.094,24.4041]
[1643370336650,33.4182181,88.179,88.094,24.4041]
[1643370336951,33.4182181,88.179,88.095,23.1048]
[1643370337356,33.4182181,88.179,88.096,0.25]
[1643370337757,107.15708468,88.228,88.096,0.25]
[1643370337758,17.3523,88.202,88.11,16.35]
[1643370337953,0.25,88.178,88.111,22.9964]
[1643370338155,0.25,88.186,88.111,23.2464]
[1643370338354,6.0,88.2,88.111,23.2464]
[1643370338753,6.0,88.2,88.112,42.08288524]
[1643370339154,6.0,88.2,88.113,0.25]
[1643370340957,0.25,88.199,88.113,0.25]
[1643370341158,0.25,88.199,88.114,2.14627954]
[1643370341358,0.25,88.199,88.12,6.0]
[1643370341567,0.25,88.199,88.13,16.35]
[1643370341759,0.25,88.226,88.131,47.1763]
[1643370341958,0.25,88.226,88.131,47.4263]
[1643370342258,31.75619698,88.226,88.132,43.29343379]
[1643370343862,112.8,88.225,88.132,43.29343379]
[1643370344263,0.25,88.224,88.132,43.29343379]
[1643370344485,112.8,88.219,88.132,43.29343379]
[1643370344889,2.23176442,88.209,88.132,43.29343379]
[1643370345286,0.25,88.208,88.132,43.04343379]
[1643370346491,6.0,88.2,88.133,0.25]
[1643370346691,0.25,88.199,88.132,43.04343379]
[1643370346891,113.05,88.199,88.132,43.04343379]
[1643370347594,0.25,88.199,88.132,43.04343379]
[1643370348391,0.25,88.199,88.133,0.25]
[1643370348791,0.25,88.217,88.133,22.9434]
[1643370350306,1.5474625,88.228,88.133,135.7434]
[1643370350493,1.5474625,88.234,88.14,210.4]
[1643370350692,1.5474625,88.243,88.15,220.75]
[1643370350893,1.5474625,88.245,88.151,23.3321]
[1643370351093,51.5632516,88.279,88.151,23.3321]
[1643370351094,1.5474625,88.248,88.161,42.39860481]
[1643370351394,1.5474625,88.25,88.17,15.35]
[1643370351592,1.5474625,88.251,88.17,15.35]
[1643370351793,1.5474625,88.253,88.171,23.291]
[1643370352491,1.5474625,88.254,88.171,23.291]
[1643370352895,1.5474625,88.254,88.18,6.0]
[1643370353091,48.4927,88.279,88.18,6.0]
[1643370353092,1.5474625,88.261,88.19,16.35]
[1643370353291,1.5474625,88.262,88.191,0.25]
[1643370353491,6.0,88.26,88.191,0.25]
[1643370353694,6.0,88.26,88.191,40.6228678]
[1643370354293,0.25,88.259,88.191,40.6228678]
[1643370355094,6.0,88.27,88.192,23.3481]
[1643370355296,28.70714717,88.269,88.193,0.25]
[1643370355697,6.0,88.26,88.193,0.25]
[1643370355897,0.25,88.259,88.193,0.25]
[1643370356497,1.5474625,88.288,88.193,0.25]
[1643370356697,1.5474625,88.288,88.21,204.4]
[1643370356896,1.5474625,88.31,88.22,220.75]
[1643370357097,111.9,88.357,88.22,220.75]
[1643370357098,1.5474625,88.318,88.24,204.4]
[1643370357298,1.5474625,88.33,88.25,16.35]
[1643370357497,1.5474625,88.34,88.25,22.35]
[1643370357700,1.5474625,88.352,88.25,243.995]
[1643370357901,1.5474625,88.352,88.251,2.15175888]
[1643370358102,1.5474625,88.356,88.26,6.0]
[1643370358299,1.5474625,88.363,88.261,160.6375]
[1643370358502,1.5474625,88.383,88.281,112.8]
[1643370358699,46.0847,88.428,88.29,16.35]
[1643370358700,1.5474625,88.393,88.29,16.35]
[1643370358899,1.5474625,88.393,88.292,40.3728678]
[1643370358900,23.98006954,88.392,88.292,40.3728678]
[1643370359098,23.98006954,88.392,88.293,22.8762]
[1643370359300,25.52753204,88.392,88.293,22.8762]
[1643370359501,6.0,88.39,88.293,22.8762]
[1643370359901,6.25,88.39,88.3,6.0]
[1643370360104,6.25,88.39,88.31,16.35]
[1643370360303,6.25,88.39,88.311,37.94144197]
[1643370361305,6.0,88.39,88.311,37.94144197]
[1643370361506,1.5474625,88.397,88.311,37.94144197]
[1643370361706,24.5026,88.415,88.311,37.94144197]
[1643370361707,1.5474625,88.4,88.311,37.94144197]
[1643370361905,30.29859175,88.399,88.311,37.94144197]
[1643370362706,1.5474625,88.397,88.311,37.94144197]
[1643370362908,6.0,88.39,88.311,37.94144197]
[1643370363314,6.25,88.39,88.311,37.94144197]
[1643370365010,0.25,88.39,88.311,37.94144197]
[1643370365210,6.0,88.38,88.311,37.94144197]
[1643370365410,0.25,88.38,88.311,37.94144197]
[1643370366109,0.25,88.38,88.32,6.0]
[1643370366310,0.25,88.38,88.33,16.35]
[1643370366509,6.25,88.4,88.331,43.28544525]
[1643370367512,6.0,88.4,88.331,43.28544525]
[1643370368712,22.988,88.4,88.331,43.28544525]
[1643370369715,23.238,88.4,88.331,43.28544525]
[1643370370417,6.25,88.4,88.331,43.28544525]
[1643370371118,6.25,88.4,88.33,16.35]
[1643370371119,0.00494517,88.347,88.33,16.6]
[1643370371318,0.00494517,88.347,88.331,112.8]
[1643370372324,0.00494517,88.347,88.34,210.4]
[1643370372623,1.5474625,88.474,88.342,112.8]
[1643370372824,16.975,88.47,88.37,204.4]
[1643370373119,47.2487,88.498,88.38,22.35]
[1643370373320,29.6824444,88.497,88.382,112.8]
[1643370373522,64.3146,88.498,88.39,210.4]
[1643370373720,64.3146,88.498,88.4,16.35]
[1643370373920,64.3146,88.498,88.401,22.9497]
[1643370374126,64.3146,88.498,88.41,6.0]
[1643370374320,64.3146,88.498,88.42,16.35]
[1643370374520,26.29301984,88.497,88.421,41.56053667]
[1643370374720,10.14454023,88.525,88.421,41.56053667]
[1643370374721,2.95669142,88.517,88.421,41.56053667]
[1643370374924,1.5474625,88.557,88.43,6.0]
[1643370375123,2.95669142,88.558,88.44,16.35]
[1643370375322,1.5474625,88.573,88.441,22.8554]
[1643370375523,73.5136,88.574,88.45,210.4]
[1643370375723,16.956,88.57,88.47,16.952]
[1643370375920,27.17312943,88.573,88.48,16.35]
[1643370376124,27.17312943,88.573,88.48,22.35]
[1643370376322,27.17312943,88.573,88.48,16.35]
[1643370376323,2.95669142,88.572,88.48,16.35]
[1643370376722,16.955,88.57,88.41,16.963]
[1643370376924,112.8,88.569,88.43,16.35]
[1643370377124,6.0,88.56,88.43,16.35]
[1643370377325,23.1593,88.559,88.43,16.35]
[1643370377525,6.0,88.55,88.433,45.59034894]
[1643370377728,6.0,88.55,88.434,45.5053]
[1643370377927,2.95669142,88.549,88.434,45.5053]
[1643370378146,6.0,88.54,88.434,45.5053]
[1643370378346,27.17312943,88.539,88.44,6.0]
[1643370378546,6.0,88.53,88.45,16.35]
[1643370378749,6.0,88.53,88.451,37.24012256]
[1643370379046,17.212,88.53,88.451,37.24012256]
[1643370380249,0.25,88.53,88.451,37.24012256]
[1643370380648,6.0,88.53,88.451,37.24012256]
[1643370380847,0.25,88.53,88.451,37.24012256]
[1643370381650,6.25,88.53,88.451,37.24012256]
[1643370383151,23.211,88.53,88.451,37.24012256]
[1643370384153,0.25,88.53,88.452,2.14756451]
[1643370384352,23.2024,88.549,88.453,23.7079]
[1643370384758,23.2024,88.549,88.454,2.14756451]
[1643370384956,23.2024,88.549,88.46,6.0]
[1643370385153,23.2024,88.549,88.46,19.57]
[1643370385355,31.77055545,88.548,88.46,19.82]
[1643370385955,16.958,88.55,88.46,19.82]
[1643370386156,16.954,88.57,88.461,114.94756451]
[1643370386557,16.954,88.57,88.471,6.0]
[1643370386757,0.04482436,88.585,88.471,6.0]
[1643370386758,0.04482436,88.585,88.481,112.8]
[1643370386959,0.04482436,88.585,88.49,16.948]
[1643370387160,0.04482436,88.585,88.5,13.57]
[1643370387360,0.04482436,88.585,88.5,19.82]
[1643370387561,0.04482436,88.585,88.51,6.0]
[1643370387760,0.04482436,88.585,88.52,13.57]
[1643370387959,0.04482436,88.585,88.521,45.54756336]
[1643370388159,0.04482436,88.585,88.53,6.0]
[1643370388362,0.04482436,88.585,88.54,13.57]
[1643370388758,0.04482436,88.585,88.54,13.82]
[1643370388961,0.04482436,88.585,88.541,40.18633929]
[1643370392863,0.04482436,88.585,88.51,13.57]
[1643370393065,2.95669142,88.584,88.49,13.57]
[1643370393265,16.951,88.58,88.49,13.57]
[1643370393466,6.0,88.574,88.491,2.14756451]
[1643370393672,0.25,88.58,88.491,2.14756451]
[1643370393874,0.25,88.58,88.492,42.85757393]
[1643370394074,0.04482436,88.585,88.502,6.0]
[1643370394267,0.04482436,88.585,88.51,13.57]
[1643370394468,0.04482436,88.585,88.511,39.59034171]
[1643370394670,0.04482436,88.585,88.521,6.0]
[1643370394869,0.04482436,88.585,88.53,13.57]
[1643370395068,0.04482436,88.585,88.531,42.12743658]
[1643370395271,0.04482436,88.585,88.531,44.27500109]
[1643370395668,0.04482436,88.585,88.531,42.12743658]
[1643370400876,6.0,88.58,88.531,42.12743658]
[1643370401079,6.0,88.575,88.531,42.12743658]
[1643370401478,16.952,88.57,88.531,42.12743658]
[1643370401679,6.0,88.569,88.531,42.12743658]
[1643370401877,17.202,88.57,88.51,13.57]
[1643370402076,17.202,88.57,88.46,227.93856481]
[1643370402077,6.0,88.56,88.5,13.57]
[1643370402276,6.25,88.56,88.48,13.57]
[1643370402477,6.0,88.559,88.48,13.57]
[1643370402677,23.204,88.56,88.48,13.57]
[1643370402879,23.204,88.56,88.493,35.62621051]
[1643370403682,22.954,88.56,88.493,35.62621051]
[1643370404700,112.8,88.559,88.493,35.62621051]
[1643370404898,112.8,88.559,88.464,24.7997]
[1643370404899,16.957,88.55,88.464,24.7997]
[1643370405101,16.957,88.55,88.47,13.57]
[1643370405300,17.207,88.55,88.47,13.82]
[1643370405901,17.207,88.55,88.471,36.84523519]
[1643370406702,22.959,88.54,88.471,36.84523519]
[1643370406902,23.209,88.54,88.471,36.84523519]
[1643370407701,1.5474625,88.552,88.471,36.84523519]
[1643370407901,16.954,88.56,88.472,2.14756451]
[1643370408101,6.0,88.55,88.472,2.14756451]
[1643370408801,16.954,88.56,88.473,17.64551272]
[1643370409202,16.954,88.56,88.474,2.14756451]
[1643370409507,16.957,88.54,88.483,6.0]
[1643370409702,16.957,88.54,88.471,36.84523519]
[1643370410103,17.207,88.54,88.471,36.84523519]
[1643370410301,16.957,88.54,88.471,36.84523519]
[1643370411604,17.207,88.54,88.471,36.84523519]
[1643370412005,6.0,88.53,88.471,36.84523519]
[1643370412404,22.96,88.53,88.471,36.84523519]
[1643370412804,23.21,88.53,88.471,36.84523519]
[1643370413403,17.21,88.53,88.471,36.84523519]
[1643370414805,17.21,88.53,88.456,2.14756451]
[1643370415005,17.21,88.53,88.45,13.57]
[1643370415006,6.0,88.52,88.45,13.57]
[1643370415207,16.964,88.51,88.45,13.57]
[1643370415708,6.0,88.52,88.45,13.57]
[1643370415907,6.25,88.52,88.452,40.31203694]
[1643370416109,6.0,88.518,88.452,40.31203694]
[1643370416711,6.0,88.519,88.452,40.31203694]
[1643370416908,16.96,88.53,88.452,40.31203694]
[1643370417309,16.962,88.52,88.453,0.25]
[1643370417809,0.25,88.519,88.453,0.25]
[1643370418509,22.963,88.51,88.453,0.25]
[1643370419911,22.963,88.51,88.452,40.31203694]
[1643370420110,0.25,88.509,88.452,40.31203694]
[1643370422517,6.0,88.508,88.452,40.31203694]
[1643370422717,6.0,88.5,88.452,40.31203694]
[1643370422922,0.25,88.499,88.452,40.31203694]
[1643370423322,16.963,88.51,88.452,40.31203694]
[1643370423524,1.5474625,88.532,88.453,0.25]
[1643370423722,1.5474625,88.532,88.453,2.39756451]
[1643370424025,1.5474625,88.542,88.453,2.39756451]
[1643370424221,1.5474625,88.542,88.454,23.6461]
[1643370424421,1.5474625,88.548,88.463,6.0]
[1643370424622,6.0,88.538,88.47,13.57]
[1643370424824,6.0,88.538,88.471,0.25]
[1643370425022,6.0,88.539,88.471,35.11447226]
[1643370425221,0.25,88.537,88.471,35.11447226]
[1643370425422,112.8,88.537,88.471,34.86447226]
[1643370425621,6.0,88.528,88.471,34.86447226]
[1643370425823,0.25,88.527,88.471,34.86447226]
[1643370426623,6.25,88.527,88.471,34.86447226]
[1643370427432,16.961,88.52,88.471,34.86447226]
[1643370427926,6.0,88.51,88.471,34.86447226]
[1643370428329,0.25,88.509,88.471,34.86447226]
[1643370428528,6.0,88.51,88.471,34.86447226]
[1643370429130,0.25,88.509,88.471,34.86447226]
[1643370431561,0.25,88.514,88.471,34.86447226]
[1643370431962,6.0,88.515,88.471,34.86447226]
[1643370433457,0.25,88.514,88.471,34.86447226]
[1643370433658,6.0,88.515,88.471,34.86447226]
[1643370433659,6.0,88.51,88.471,34.86447226]
[1643370434258,1.5474625,88.524,88.471,34.86447226]
[1643370434860,1.5474625,88.514,88.471,34.86447226]
[1643370435262,0.25,88.513,88.471,34.86447226]
[1643370435661,16.963,88.51,88.471,34.86447226]
[1643370435862,0.25,88.509,88.471,34.86447226]
[1643370437364,1.5474625,88.523,88.471,34.86447226]
[1643370437766,0.25,88.522,88.471,34.86447226]
[1643370437964,1.5474625,88.517,88.471,34.86447226]
[1643370438165,6.0,88.515,88.471,34.86447226]
[1643370438364,0.25,88.514,88.471,34.86447226]
[1643370439167,1.5474625,88.512,88.471,34.86447226]
[1643370439466,0.25,88.511,88.471,34.86447226]
[1643370439868,1.5474625,88.512,88.471,34.86447226]
[1643370440269,1.5474625,88.513,88.471,34.86447226]
[1643370440469,1.5474625,88.515,88.471,34.86447226]
[1643370440670,1.5474625,88.516,88.471,34.86447226]
[1643370441072,0.25,88.515,88.471,34.86447226]
[1643370442677,1.5474625,88.516,88.471,34.86447226]
[1643370443078,1.5474625,88.518,88.471,34.86447226]
[1643370443479,1.5474625,88.517,88.471,34.86447226]
[1643370443878,1.5474625,88.519,88.472,0.25]
[1643370445285,1.5474625,88.522,88.471,34.86447226]
[1643370445483,1.5474625,88.517,88.471,34.86447226]
[1643370445685,1.7974625,88.518,88.471,34.86447226]
[1643370445884,1.5474625,88.515,88.471,34.86447226]
[1643370446082,1.5474625,88.514,88.471,34.86447226]
[1643370446284,1.5474625,88.513,88.471,34.86447226]
[1643370446485,1.7974625,88.513,88.471,34.86447226]
[1643370446686,1.5474625,88.513,88.471,34.86447226]
[1643370446885,0.25,88.512,88.471,34.86447226]
[1643370447485,3.08858334,88.538,88.472,75.0]
[1643370447688,3.08858334,88.55,88.481,112.8]
[1643370447890,29.69587095,88.582,88.482,6.25]
[1643370447891,3.08858334,88.568,88.482,6.25]
[1643370448085,3.10558547,88.581,88.482,6.25]
[1643370448086,3.08858334,88.572,88.491,6.0]
[1643370448286,3.08858334,88.572,88.5,16.29]
[1643370448685,3.10558547,88.571,88.501,46.97832743]
[1643370448886,3.10558547,88.571,88.501,49.11273869]
[1643370449087,3.08858334,88.581,88.511,6.0]
[1643370449290,0.04482436,88.585,88.52,16.29]
[1643370449709,0.04482436,88.585,88.521,22.5945]
[1643370449915,16.951,88.58,88.522,37.66624867]
[1643370450312,0.25,88.579,88.522,37.66624867]
[1643370451413,0.04482436,88.585,88.523,0.25]
[1643370451715,0.04482436,88.585,88.522,37.66624867]
[1643370451911,0.04482436,88.585,88.523,0.25]
[1643370452915,0.04482436,88.585,88.523,24.4928]
[1643370455517,0.04482436,88.585,88.523,24.2428]
[1643370457321,0.04482436,88.585,88.533,6.0]
[1643370457927,0.04482436,88.585,88.524,0.25]
[1643370459125,0.04482436,88.585,88.523,24.2428]
[1643370459724,0.04482436,88.585,88.524,0.25]
[1643370460722,0.04482436,88.585,88.523,24.2428]
[1643370462724,0.04482436,88.585,88.524,0.25]
[1643370463526,0.04482436,88.585,88.523,24.2428]
[1643370465233,16.951,88.58,88.523,24.2428]
[1643370465434,9.78374756,88.579,88.523,24.2428]
[1643370465634,112.8,88.578,88.523,24.2428]
[1643370465831,0.25,88.577,88.522,37.66624867]
[1643370466633,16.955,88.56,88.522,37.66624867]
[1643370466833,25.25167634,88.559,88.522,37.66624867]
[1643370467037,25.25167634,88.559,88.49,16.29]
[1643370467038,25.25167634,88.559,88.48,16.29]
[1643370467232,25.25167634,88.559,88.491,0.25]
[1643370468332,25.25167634,88.559,88.481,47.21463871]
[1643370468333,25.25167634,88.559,88.482,24.2944]
[1643370468731,25.25167634,88.559,88.483,0.25]
[1643370470536,25.00167634,88.559,88.483,0.25]
[1643370470735,16.955,88.56,88.483,0.25]
[1643370471739,27.68646049,88.559,88.483,0.25]
[1643370472237,0.25,88.558,88.483,0.25]
[1643370473238,23.3894,88.584,88.483,0.25]
[1643370473239,23.3894,88.584,88.484,2.13276169]
[1643370473641,0.04482436,88.585,88.494,6.0]
[1643370473839,0.04482436,88.585,88.5,16.29]
[1643370474340,0.04482436,88.585,88.501,59.44749559]
[1643370476739,0.04482436,88.585,88.502,2.13276169]
[1643370476939,0.04482436,88.585,88.511,6.0]
[1643370477139,0.04482436,88.585,88.512,30.3729]
[1643370477343,0.04482436,88.585,88.522,112.8]
[1643370477539,0.04482436,88.585,88.532,6.0]
[1643370477739,0.04482436,88.585,88.54,219.9]
[1643370477941,0.04482436,88.585,88.541,112.8]
[1643370478140,0.04482436,88.585,88.552,112.8]
[1643370478339,0.00482436,88.585,88.56,16.29]
[1643370478541,0.00482436,88.585,88.57,6.0]
[1643370478843,0.00482436,88.585,88.571,0.25]
[1643370479643,0.00482436,88.585,88.57,22.29]
[1643370480345,0.00482436,88.585,88.57,16.29]
[1643370480745,0.00482436,88.585,88.53,16.29]
[1643370480948,0.00482436,88.585,88.495,49.0395]
[1643370481147,0.00482436,88.585,88.51,16.29]
[1643370481348,0.00482436,88.585,88.525,40.8147778]
[1643370481546,0.00482436,88.585,88.53,16.29]
[1643370481747,0.00482436,88.585,88.53,33.231]
[1643370481947,0.00482436,88.585,88.54,6.0]
[1643370482146,0.00482436,88.585,88.55,16.29]
[1643370482346,0.00482436,88.585,88.551,0.25]
[1643370483371,0.00482436,88.585,88.55,16.29]
[1643370483575,0.00482436,88.585,88.56,6.0]
[1643370483773,0.00482436,88.585,88.56,22.29]
[1643370484180,0.00482436,88.585,88.56,16.29]
[1643370484674,0.00482436,88.585,88.561,0.25]
[1643370484973,0.00482436,88.585,88.561,2.3770701]
[1643370485174,0.00482436,88.585,88.562,49.1860701]
[1643370485373,0.00482436,88.585,88.563,0.25]
[1643370485576,0.00482436,88.585,88.563,2.3770701]
[1643370485773,0.00482436,88.585,88.564,2.1270701]
[1643370486174,0.00482436,88.585,88.565,0.25]